[Event "Chelyabinskiy variant-A 2021"]
[Site "Chelyabinsk"]
[Date "2021.03.24"]
[Round "2.10"]
[White "Maiorov, Nikita"]
[Black "Tsvetkov, Andrey"]
[Result "1/2-1/2"]
[ECO "D45"]
[WhiteElo "2495"]
[BlackElo "2404"]
[Annotator "RC"]
[PlyCount "189"]
[EventDate "2021.03.23"]
[EventType "swiss"]
[EventCountry "RUS"]
[SourceTitle "playchess.com"]
[Source "ChessBase"]
[SourceQuality "1"]
[TimeControl "5400+30"]

1. d4 {[%emt 0:00:00]} d5 {[%emt 0:00:00]} 2. c4 {[%emt 0:00:01]} e6 {[%emt 0:00:00]} 3. Nf3 {[%emt 0:00:08]} Nf6 {[%emt 0:00:00]} 4. Nc3 {[%emt 0:00:03]} c6 {[%emt 0:00:00]} 5. e3 {[%emt 0:00:28]} Nbd7 {[%emt 0:00:03]} 6. Qc2 {[%emt 0:00:04]} Bd6 {[%emt 0:00:07]} 7. Bd3 {[%emt 0:00:03]} O-O {[%emt 0:00:39]} 8. O-O {[%emt 0:00:03]} e5 {[%emt 0:00:47]} 9. cxd5 {[%emt 0:00:44]} cxd5 {[%emt 0:00:05]} 10. Nb5 {[%emt 0:09:41]} Bb8 {[%emt 0:01:24]} 11. dxe5 {[%emt 0:00:07]} Nxe5 {[%emt 0:00:07]} 12. Be2 {[%emt 0:08:28]} Nxf3+ {[%emt 0:39:36]} 13. Bxf3 {[%emt 0:00:06]} Bg4 {[%emt 0:02:59]} 14. Nd4 {[%emt 0:05:32]} Qd7 {[%emt 0:06:25]} 15. Bd2 {[%emt 0:04:52]} Rc8 {[%emt 0:07:38]} 16. Qd3 {[%emt 0:00:25]} Be5 {[%emt 0:04:11]} 17. Bxg4 {[%emt 0:06:00]} Qxg4 {[%emt 0:03:57]} 18. Nf3 {[%emt 0:18:24]} Bxb2 {[%emt 0:03:28]} 19. Rab1 {[%emt 0:00:03]} Qe4 {[%emt 0:00:03]} 20. Qb5 {[%emt 0:03:32]} Be5 {[%emt 0:02:07]} 21. Rb4 {[%emt 0:00:23]} Qf5 {[%emt 0:02:06]} 22. Qxb7 {[%emt 0:02:12]} Ne4 {[%emt 0:02:18]} 23. Nxe5 {[%emt 0:02:36]} Qxe5 {[%emt 0:05:17]} 24. Rd4 {[%emt 0:00:17]} Rcb8 {[%emt 0:01:51]} 25. Qa6 {[%emt 0:11:32]} Rb2 {[%emt 0:03:46]} 26. Rd1 {[%emt 0:08:46]} Qf6 {[%emt 0:05:48]} 27. Qxf6 {[%emt 0:00:11]} Nxf6 {[%emt 0:00:31]} 28. a4 {[%emt 0:04:15]} Rc8 {[%emt 0:01:01]} 29. f3 {[%emt 0:01:03]} h6 {[%emt 0:01:00]} 30. Be1 {[%emt 0:02:57]} Kh7 {[%emt 0:00:48]} 31. R4d2 {[%emt 0:02:15]} Rb3 {[%emt 0:01:12]} 32. Rd3 {[%emt 0:00:10]} Rb2 {[%emt 0:01:08]} 33. Kf1 {[%emt 0:01:25]} Rc4 {[%emt 0:01:43]} 34. Rd4 {[%emt 0:01:02]} Rc6 {[%emt 0:00:23]} 35. R4d2 {[%emt 0:01:22]} Rb3 {[%emt 0:00:31]} 36. Ke2 {[%emt 0:01:01]} Ra3 {[%emt 0:00:41]} 37. Rd4 {[%emt 0:00:13]} Rc2+ {[%emt 0:00:24]} 38. Bd2 {[%emt 0:00:26]} Rca2 {[%emt 0:00:25]} 39. Rb4 {[%emt 0:01:02]} Rxa4 40. Rb7 {[%emt 0:00:21]} Kg6 {[%emt 0:01:21]} 41. Rc1 {[%emt 0:00:39]} d4 {[%emt 0:02:00]} 42. e4 {[%emt 0:00:16]} R4a3 {[%emt 0:00:33]} 43. Rcb1 {[%emt 0:02:42]} Nd7 {[%emt 0:01:09]} 44. Rxd7 {[%emt 0:01:51]} Re3+ {[%emt 0:00:04]} 45. Kf2 {[%emt 0:02:15]} Rxd2+ {[%emt 0:00:03]} 46. Kg3 {[%emt 0:00:03]} Ree2 {[%emt 0:01:10]} 47. Rbb7 {[%emt 0:00:03]} Rxg2+ {[%emt 0:00:55]} 48. Kf4 {[%emt 0:00:02]} Kh7 {[%emt 0:01:01]} 49. Rxf7 {[%emt 0:00:04]} a5 {[%emt 0:00:10]} 50. Ra7 {[%emt 0:00:11]} d3 {[%emt 0:00:56]} 51. Rfd7 {[%emt 0:00:19]} Rd1 {[%emt 0:01:00]} 52. Rxa5 {[%emt 0:00:44]} Rxh2 {[%emt 0:00:11]} 53. Rad5 {[%emt 0:01:58]} d2 {[%emt 0:00:24]} 54. e5 {[%emt 0:00:37]} Re2 {[%emt 0:00:47]} 55. e6 {[%emt 0:01:42]} Rxe6 {[%emt 0:00:40]} 56. Rxd2 {[%emt 0:00:04]} Rf6+ {[%emt 0:00:09]} 57. Kg3 {[%emt 0:00:06]} Rg6+ {[%emt 0:00:53]} 58. Kf2 {[%emt 0:00:15]} Rh1 {[%emt 0:00:08]} 59. R7d6 {[%emt 0:01:22]} Rg5 {[%emt 0:00:26]} 60. R2d5 {[%emt 0:00:21]} Rh2+ {[%emt 0:00:11]} 61. Ke3 {[%emt 0:00:04]} Rg1 {[%emt 0:00:23]} 62. Rd1 {[%emt 0:00:18]} Rgg2 {[%emt 0:00:04]} 63. Kf4 {[%emt 0:00:55]} Ra2 {[%emt 0:00:43]} 64. Rg1 {[%emt 0:00:10]} Ra7 {[%emt 0:00:13]} 65. Kg3 {[%emt 0:00:08]} Rh5 {[%emt 0:00:05]} 66. Rd4 {[%emt 0:00:13]} Rf5 {[%emt 0:00:27]} 67. Rf4 {[%emt 0:00:04]} Rg5+ {[%emt 0:00:14]} 68. Rg4 {[%emt 0:00:03]} Re5 {[%emt 0:00:04]} 69. Rg2 {[%emt 0:00:31]} Rf7 {[%emt 0:00:18]} 70. Rf2 {[%emt 0:00:23]} Ref5 {[%emt 0:00:13]} 71. Kg2 {[%emt 0:00:04]} Ra5 {[%emt 0:00:25]} 72. Re2 {[%emt 0:00:10]} Ra3 {[%emt 0:00:08]} 73. Rf2 {[%emt 0:00:05]} Rf6 {[%emt 0:00:21]} 74. Re4 {[%emt 0:00:44]} h5 {[%emt 0:00:20]} 75. Rd4 {[%emt 0:00:29]} Kh6 {[%emt 0:00:18]} 76. Re4 {[%emt 0:00:03]} Rg6+ {[%emt 0:00:08]} 77. Kh2 {[%emt 0:00:04]} Rf6 {[%emt 0:00:29]} 78. Kg2 {[%emt 0:00:04]} Ra5 {[%emt 0:00:25]} 79. Re3 {[%emt 0:00:25]} Rg5+ {[%emt 0:00:20]} 80. Kh2 {[%emt 0:00:04]} Rf4 {[%emt 0:00:17]} 81. Rg2 {[%emt 0:00:22]} Rh4+ {[%emt 0:01:13]} 82. Kg1 {[%emt 0:00:05]} Ra4 {[%emt 0:00:32]} 83. Rxg5 {[%emt 0:00:23]} Kxg5 {[%emt 0:00:01]} 84. Re2 {[%emt 0:00:21]} Kf4 {[%emt 0:00:30]} 85. Kg2 {[%emt 0:00:05]} g5 {[%emt 0:00:57]} 86. Rb2 {[%emt 0:00:11]} h4 {[%emt 0:00:21]} 87. Rc2 {[%emt 0:00:15]} Ke3 {[%emt 0:01:22]} 88. Rc3+ {[%emt 0:00:10]} Kd4 {[%emt 0:00:24]} 89. Rc2 {[%emt 0:00:10]} Rc4 {[%emt 0:01:43]} 90. Re2 {[%emt 0:00:15]} Rc5 {[%emt 0:00:42]} 91. Re4+ {[%emt 0:00:36]} Kd3 {[%emt 0:00:06]} 92. Kh3 {[%emt 0:02:00]} Rc1 {[%emt 0:01:25]} 93. Rg4 {[%emt 0:01:23]} Ke3 {[%emt 0:00:15]} 94. Rxg5 {[%emt 0:00:13]} Kxf3 {[%emt 0:00:03]} 95. Rf5+ {[%emt 0:00:19]} 1/2-1/2

[Event "Chelyabinskiy variant-A 2021"]
[Site "Chelyabinsk"]
[Date "2021.03.24"]
[Round "2.12"]
[White "Simantsev, Mikhail"]
[Black "Salemgareev, Tagir"]
[Result "1-0"]
[ECO "E11"]
[WhiteElo "2389"]
[BlackElo "2480"]
[Annotator "ChessBase"]
[PlyCount "129"]
[EventDate "2021.03.23"]
[EventType "swiss"]
[EventCountry "RUS"]
[SourceTitle "playchess.com"]
[Source "ChessBase"]
[SourceQuality "1"]
[TimeControl "5400+30"]

1. d4 {[%emt 0:00:00]} Nf6 {[%emt 0:00:00]} 2. c4 {[%emt 0:00:00]} e6 {[%emt 0:00:00]} 3. Nf3 {[%emt 0:00:27]} Bb4+ {[%emt 0:00:40]} 4. Nbd2 {[%emt 0:04:34]} O-O {[%emt 0:00:14]} 5. a3 {[%emt 0:00:18]} Be7 {[%emt 0:00:12]} 6. e4 {[%emt 0:00:07]} d6 {[%emt 0:00:37]} 7. Be2 {[%emt 0:01:21]} Nbd7 {[%emt 0:03:35]} 8. O-O {[%emt 0:02:24]} e5 {[%emt 0:00:11]} 9. Qc2 {[%emt 0:07:58]} Re8 {[%emt 0:07:51]} 10. b3 {[%emt 0:14:00]} exd4 {[%emt 0:07:41]} 11. Nxd4 {[%emt 0:00:14]} Bf8 {[%emt 0:00:44]} 12. Bb2 {[%emt 0:01:40]} Ne5 {[%emt 0:01:40]} 13. h3 {[%emt 0:16:35]} c6 {[%emt 0:09:52]} 14. Rae1 {[%emt 0:08:02]} Bd7 {[%emt 0:16:49]} 15. Kh2 {[%emt 0:20:06]} c5 {[%emt 0:18:32]} 16. Nb5 {[%emt 0:06:36]} a6 {[%emt 0:17:19]} 17. Nc3 {[%emt 0:00:12]} Nc6 {[%emt 0:00:04]} 18. Qd1 {[%emt 0:02:35]} g6 {[%emt 0:01:47]} 19. f4 {[%emt 0:06:13]} Bg7 {[%emt 0:00:11]} 20. Qa1 {[%emt 0:03:14]} Nd4 {[%emt 0:00:58]} 21. Bd1 {[%emt 0:00:01]} Bc6 {[%emt 0:06:07]} 22. Qb1 {[%emt 0:01:30]} b5 {[%emt 0:00:49]} 23. Qd3 {[%emt 0:02:41]} bxc4 {[%emt 0:01:12]} 24. bxc4 {[%emt 0:00:31]} Rb8 {[%emt 0:00:15]} 25. Bc1 {[%emt 0:00:29]} Qa5 {[%emt 0:01:12]} 26. Nd5 {[%emt 0:00:36]} Nxd5 {[%emt 0:01:31]} 27. exd5 {[%emt 0:00:12]} Bd7 {[%emt 0:00:06]} 28. g4 {[%emt 0:00:05]} Ba4 {[%emt 0:01:12]} 29. Rxe8+ {[%emt 0:01:13]} Rxe8 {[%emt 0:00:28]} 30. Ne4 {[%emt 0:00:18]} Bxd1 {[%emt 0:01:01]} 31. Rxd1 {[%emt 0:00:01]} Qd8 {[%emt 0:00:09]} 32. Ng3 {[%emt 0:01:10]} Qh4 {[%emt 0:00:46]} 33. Kg2 {[%emt 0:00:10]} f5 {[%emt 0:01:17]} 34. gxf5 {[%emt 0:00:42]} gxf5 {[%emt 0:00:32]} 35. Be3 {[%emt 0:00:42]} Kh8 {[%emt 0:00:31]} 36. Rf1 {[%emt 0:00:30]} Rg8 {[%emt 0:00:33]} 37. Kh2 {[%emt 0:00:07]} Rb8 {[%emt 0:00:57]} 38. Bxd4 {[%emt 0:00:17]} cxd4 {[%emt 0:00:34]} 39. Nxf5 {[%emt 0:00:14]} Qf6 {[%emt 0:00:33]} 40. Nxg7 {[%emt 0:00:38]} Qxg7 {[%emt 0:00:06]} 41. Rg1 {[%emt 0:01:13]} Qf6 {[%emt 0:00:07]} 42. Qe4 {[%emt 0:00:19]} Rf8 {[%emt 0:00:36]} 43. Rg4 {[%emt 0:00:25]} h5 {[%emt 0:00:54]} 44. Rg5 {[%emt 0:00:39]} Qxf4+ {[%emt 0:00:07]} 45. Qxf4 {[%emt 0:00:12]} Rxf4 {[%emt 0:00:03]} 46. Kg3 {[%emt 0:00:12]} Rf1 {[%emt 0:00:22]} 47. Rxh5+ {[%emt 0:00:39]} Kg7 {[%emt 0:00:02]} 48. Rh4 {[%emt 0:00:15]} Rd1 {[%emt 0:01:12]} 49. Kf3 {[%emt 0:00:56]} Rc1 {[%emt 0:01:46]} 50. Rxd4 {[%emt 0:00:12]} Rc3+ {[%emt 0:00:01]} 51. Kg4 {[%emt 0:00:40]} Kf7 {[%emt 0:00:55]} 52. Rf4+ {[%emt 0:00:54]} Ke7 {[%emt 0:00:19]} 53. h4 {[%emt 0:00:28]} Rxa3 {[%emt 0:00:02]} 54. h5 {[%emt 0:00:10]} Ra1 {[%emt 0:00:25]} 55. Re4+ {[%emt 0:00:28]} Kf7 {[%emt 0:00:11]} 56. Re6 {[%emt 0:00:37]} a5 {[%emt 0:01:21]} 57. Rxd6 {[%emt 0:00:20]} a4 {[%emt 0:00:01]} 58. Ra6 {[%emt 0:00:52]} a3 {[%emt 0:00:05]} 59. Kg5 {[%emt 0:00:12]} a2 {[%emt 0:01:00]} 60. Ra7+ {[%emt 0:00:11]} Kf8 {[%emt 0:01:09]} 61. Kh6 {[%emt 0:00:08]} Rc1 {[%emt 0:00:32]} 62. Rxa2 {[%emt 0:00:10]} Rxc4 {[%emt 0:00:02]} 63. Kg5 {[%emt 0:00:47]} Rc1 {[%emt 0:00:59]} 64. h6 {[%emt 0:00:56]} Rd1 {[%emt 0:00:28]} 65. Ra8+ {[%emt 0:00:22]} 1-0

[Event "Chelyabinskiy variant-A 2021"]
[Site "Chelyabinsk"]
[Date "2021.03.25"]
[Round "3.1"]
[White "Bryakin, Mikhail"]
[Black "Lysyj, Igor"]
[Result "1/2-1/2"]
[ECO "E06"]
[WhiteElo "2464"]
[BlackElo "2605"]
[Annotator "RC"]
[PlyCount "41"]
[EventDate "2021.03.23"]
[EventType "swiss"]
[EventCountry "RUS"]
[SourceTitle "playchess.com"]
[Source "ChessBase"]
[SourceQuality "1"]
[TimeControl "5400+30"]

1. d4 {[%emt 0:00:00]} Nf6 {[%emt 0:01:53]} 2. c4 {[%emt 0:00:00]} e6 {[%emt 0:00:07]} 3. g3 {[%emt 0:00:00]} d5 {[%emt 0:00:03]} 4. Nf3 {[%emt 0:00:00]} Be7 {[%emt 0:00:06]} 5. Bg2 {[%emt 0:00:06]} O-O {[%emt 0:00:05]} 6. O-O {[%emt 0:00:07]} dxc4 {[%emt 0:00:05]} 7. Qc2 {[%emt 0:00:07]} a6 {[%emt 0:00:04]} 8. a4 {[%emt 0:00:08]} c5 {[%emt 0:00:04]} 9. dxc5 {[%emt 0:00:51]} Bxc5 {[%emt 0:01:04]} 10. Nbd2 {[%emt 0:00:18]} b5 {[%emt 0:00:15]} 11. axb5 {[%emt 0:00:13]} Bb7 {[%emt 0:00:06]} 12. Nxc4 {[%emt 0:00:15]} axb5 {[%emt 0:00:26]} 13. Rxa8 {[%emt 0:00:10]} Bxa8 {[%emt 0:00:05]} 14. Nce5 {[%emt 0:00:08]} Qc8 {[%emt 0:00:23]} 15. Qd3 {[%emt 0:05:21]} Qa6 {[%emt 0:01:47]} 16. Be3 {[%emt 0:06:03]} Be4 {[%emt 0:04:02]} 17. Qb3 {[%emt 0:12:54]} Bd5 {[%emt 0:03:11]} 18. Qd3 {[%emt 0:03:55]} Be4 {[%emt 0:00:09]} 19. Qb3 {[%emt 0:00:14]} Bd5 {[%emt 0:00:06]} 20. Qd3 {[%emt 0:00:06]} Be4 {[%emt 0:00:04]} 21. Qb3 {[%emt 0:00:06]} 1/2-1/2

[Event "Chelyabinskiy variant-A 2021"]
[Site "Chelyabinsk"]
[Date "2021.03.26"]
[Round "4.6"]
[White "Gutenev, Alexander"]
[Black "Garifullina, Leya"]
[Result "1/2-1/2"]
[ECO "B90"]
[WhiteElo "2451"]
[BlackElo "2375"]
[Annotator "ChessBase"]
[PlyCount "89"]
[EventDate "2021.03.23"]
[EventType "swiss"]
[EventCountry "RUS"]
[SourceTitle "playchess.com"]
[Source "ChessBase"]
[SourceQuality "1"]
[TimeControl "5400+30"]

1. e4 {[%emt 0:03:44]} c5 {[%emt 0:00:00]} 2. Nf3 {[%emt 0:00:59]} d6 {[%emt 0:00:00]} 3. d4 {[%emt 0:00:12]} cxd4 {[%emt 0:00:05]} 4. Nxd4 {[%emt 0:00:35]} Nf6 {[%emt 0:00:14]} 5. Nc3 {[%emt 0:00:07]} a6 {[%emt 0:00:13]} 6. Qd3 {[%emt 0:03:01]} e6 {[%emt 0:06:43]} 7. a4 {[%emt 0:00:52]} b6 {[%emt 0:01:41]} 8. Be2 {[%emt 0:05:18]} Bb7 {[%emt 0:00:43]} 9. O-O {[%emt 0:00:35]} Nbd7 {[%emt 0:00:24]} 10. Qe3 {[%emt 0:10:04]} Rc8 {[%emt 0:06:17]} 11. f4 {[%emt 0:12:59]} Qc7 {[%emt 0:07:55]} 12. Kh1 {[%emt 0:10:48]} Qc5 {[%emt 0:05:54]} 13. Qd3 {[%emt 0:08:34]} e5 {[%emt 0:10:10]} 14. Nf5 {[%emt 0:01:12]} g6 {[%emt 0:00:42]} 15. Ng3 {[%emt 0:03:28]} h5 {[%emt 0:04:38]} 16. Bf3 {[%emt 0:07:22]} exf4 {[%emt 0:06:24]} 17. Bxf4 {[%emt 0:00:36]} Ne5 {[%emt 0:01:16]} 18. Qe3 {[%emt 0:02:14]} Qxe3 {[%emt 0:06:52]} 19. Bxe3 {[%emt 0:00:05]} Nfd7 {[%emt 0:00:24]} 20. Nge2 {[%emt 0:01:57]} Bg7 {[%emt 0:01:43]} 21. Bd4 {[%emt 0:01:18]} Bh6 {[%emt 0:06:10]} 22. Rad1 {[%emt 0:00:42]} Ke7 {[%emt 0:01:14]} 23. Nc1 {[%emt 0:03:00]} Rhd8 {[%emt 0:05:48]} 24. Nd3 {[%emt 0:01:55]} Rc4 {[%emt 0:01:34]} 25. Bf2 {[%emt 0:02:14]} Rdc8 {[%emt 0:01:29]} 26. Be1 {[%emt 0:03:46]} Nxf3 {[%emt 0:05:03]} 27. gxf3 {[%emt 0:00:22]} Nf8 {[%emt 0:04:04]} 28. Bg3 {[%emt 0:03:47]} Rd8 {[%emt 0:02:38]} 29. Rfe1 {[%emt 0:03:18]} g5 {[%emt 0:02:02]} 30. Nd5+ {[%emt 0:03:13]} Bxd5 {[%emt 0:00:12]} 31. exd5+ {[%emt 0:00:02]} Kf6 {[%emt 0:01:17]} 32. Bf2 {[%emt 0:00:13]} Nd7 {[%emt 0:02:34]} 33. c3 {[%emt 0:00:04]} Rxa4 {[%emt 0:02:07]} 34. Nb4 {[%emt 0:00:35]} Bf8 {[%emt 0:01:11]} 35. Nc6 {[%emt 0:01:44]} Ra8 {[%emt 0:00:35]} 36. Bd4+ {[%emt 0:00:08]} Kg6 {[%emt 0:00:32]} 37. h4 {[%emt 0:01:48]} Nf6 {[%emt 0:02:06]} 38. Rg1 {[%emt 0:00:31]} g4 {[%emt 0:00:15]} 39. b3 {[%emt 0:00:10]} Rxd4 {[%emt 0:01:08]} 40. Rxd4 {[%emt 0:01:02]} Re8 {[%emt 0:00:08]} 41. Rd3 {[%emt 0:00:23]} Re2 {[%emt 0:00:34]} 42. c4 {[%emt 0:00:23]} Bh6 {[%emt 0:00:38]} 43. Rg2 {[%emt 0:00:10]} Re1+ {[%emt 0:00:05]} 44. Rg1 {[%emt 0:00:04]} Re2 {[%emt 0:00:09]} 45. Rg2 {[%emt 0:02:07]} 1/2-1/2

[Event "Chelyabinskiy variant-A 2021"]
[Site "Chelyabinsk"]
[Date "2021.03.27"]
[Round "5.1"]
[White "Drygalov, Andrey"]
[Black "Girya, Olga"]
[Result "1/2-1/2"]
[ECO "C50"]
[WhiteElo "2500"]
[BlackElo "2432"]
[Annotator "ChessBase"]
[PlyCount "25"]
[EventDate "2021.03.23"]
[EventType "swiss"]
[EventCountry "RUS"]
[SourceTitle "playchess.com"]
[Source "ChessBase"]
[SourceQuality "1"]
[TimeControl "5400+30"]

1. e4 {[%emt 0:01:59]} e5 {[%emt 0:00:38]} 2. Nf3 {[%emt 0:00:05]} Nc6 {[%emt 0:00:06]} 3. Bc4 {[%emt 0:00:05]} Bc5 {[%emt 0:00:11]} 4. O-O {[%emt 0:00:12]} Nf6 {[%emt 0:00:40]} 5. d3 {[%emt 0:00:05]} d6 {[%emt 0:00:16]} 6. c3 {[%emt 0:00:05]} h6 {[%emt 0:00:25]} 7. Nbd2 {[%emt 0:00:34]} O-O {[%emt 0:00:43]} 8. h3 {[%emt 0:00:21]} a5 {[%emt 0:01:09]} 9. Re1 {[%emt 0:00:26]} a4 {[%emt 0:00:38]} 10. Nf1 {[%emt 0:02:58]} Bd7 {[%emt 0:00:37]} 11. d4 {[%emt 0:05:28]} Bb6 {[%emt 0:01:18]} 12. Ng3 {[%emt 0:02:49]} Re8 {[%emt 0:00:16]} 13. dxe5 {[%emt 0:17:37]} 1/2-1/2

[Event "Chelyabinskiy variant-A 2021"]
[Site "Chelyabinsk"]
[Date "2021.03.27"]
[Round "5.2"]
[White "Shuvalova, Polina"]
[Black "Ponkratov, Pavel"]
[Result "1/2-1/2"]
[ECO "B13"]
[WhiteElo "2476"]
[BlackElo "2619"]
[Annotator "ChessBase"]
[PlyCount "20"]
[EventDate "2021.03.23"]
[EventType "swiss"]
[EventCountry "RUS"]
[SourceTitle "playchess.com"]
[Source "ChessBase"]
[SourceQuality "1"]
[TimeControl "5400+30"]

1. e4 {[%emt 0:00:00]} c6 {[%emt 0:00:00]} 2. d4 {[%emt 0:01:03]} d5 {[%emt 0:00:00]} 3. exd5 {[%emt 0:00:48]} cxd5 {[%emt 0:00:00]} 4. Bd3 {[%emt 0:00:04]} Nc6 {[%emt 0:00:00]} 5. c3 {[%emt 0:00:06]} Nf6 {[%emt 0:00:00]} 6. Bf4 {[%emt 0:00:18]} Bg4 {[%emt 0:00:04]} 7. Qb3 {[%emt 0:00:09]} Na5 {[%emt 0:00:09]} 8. Qa4+ {[%emt 0:01:48]} Nc6 {[%emt 0:00:04]} 9. Qb3 {[%emt 0:00:21]} Na5 {[%emt 0:02:54]} 10. Qa4+ {[%emt 0:00:13]} Nc6 {[%emt 0:00:04]} 1/2-1/2

[Event "Chelyabinskiy variant-A 2021"]
[Site "Chelyabinsk"]
[Date "2021.03.27"]
[Round "5.3"]
[White "Gutenev, Alexander"]
[Black "Lysyj, Igor"]
[Result "1/2-1/2"]
[ECO "C82"]
[WhiteElo "2451"]
[BlackElo "2605"]
[Annotator "ChessBase"]
[PlyCount "48"]
[EventDate "2021.03.23"]
[EventType "swiss"]
[EventCountry "RUS"]
[SourceTitle "playchess.com"]
[Source "ChessBase"]
[SourceQuality "1"]
[TimeControl "5400+30"]

1. e4 {[%emt 0:00:59]} e5 {[%emt 0:00:00]} 2. Nf3 {[%emt 0:00:05]} Nc6 {[%emt 0:00:00]} 3. Bb5 {[%emt 0:00:07]} a6 {[%emt 0:00:00]} 4. Ba4 {[%emt 0:00:07]} Nf6 {[%emt 0:00:00]} 5. O-O {[%emt 0:00:11]} Nxe4 {[%emt 0:00:00]} 6. d4 {[%emt 0:00:17]} b5 {[%emt 0:00:08]} 7. Bb3 {[%emt 0:00:05]} d5 {[%emt 0:00:15]} 8. dxe5 {[%emt 0:00:10]} Be6 {[%emt 0:00:06]} 9. c3 {[%emt 0:00:12]} Bc5 {[%emt 0:00:18]} 10. Nbd2 {[%emt 0:00:09]} O-O {[%emt 0:00:18]} 11. Bc2 {[%emt 0:00:20]} Nxf2 {[%emt 0:00:26]} 12. Rxf2 {[%emt 0:00:10]} Bxf2+ {[%emt 0:00:06]} 13. Kxf2 {[%emt 0:00:28]} f6 {[%emt 0:00:04]} 14. exf6 {[%emt 0:00:28]} Qxf6 {[%emt 0:00:27]} 15. Nb3 {[%emt 0:01:56]} Ne5 {[%emt 0:09:31]} 16. Kg1 {[%emt 0:13:20]} Rae8 {[%emt 0:05:10]} 17. Be3 {[%emt 0:12:35]} Nxf3+ {[%emt 0:04:34]} 18. Qxf3 {[%emt 0:00:07]} Qxf3 {[%emt 0:00:09]} 19. gxf3 {[%emt 0:00:03]} Rxf3 {[%emt 0:00:22]} 20. Bf2 {[%emt 0:03:44]} Bh3 {[%emt 0:06:15]} 21. Nd2 {[%emt 0:01:43]} Rf6 {[%emt 0:16:19]} 22. Re1 {[%emt 0:02:59]} Rxe1+ {[%emt 0:04:12]} 23. Bxe1 {[%emt 0:00:05]} c6 {[%emt 0:20:06]} 24. Bh4 {[%emt 0:04:11]} Rf7 {[%emt 0:05:10]} 1/2-1/2

[Event "Chelyabinskiy variant-A 2021"]
[Site "Chelyabinsk"]
[Date "2021.03.27"]
[Round "5.4"]
[White "Shomoev, Anton"]
[Black "Gabrielian, Artur"]
[Result "1-0"]
[ECO "B69"]
[WhiteElo "2563"]
[BlackElo "2448"]
[Annotator "ChessBase"]
[PlyCount "129"]
[EventDate "2021.03.23"]
[EventType "swiss"]
[EventCountry "RUS"]
[SourceTitle "playchess.com"]
[Source "ChessBase"]
[SourceQuality "1"]
[TimeControl "5400+30"]

1. e4 {[%emt 0:00:00]} c5 {[%emt 0:00:00]} 2. Nf3 {[%emt 0:00:00]} d6 {[%emt 0:00:00]} 3. d4 {[%emt 0:00:00]} cxd4 {[%emt 0:00:00]} 4. Nxd4 {[%emt 0:00:00]} Nf6 {[%emt 0:00:00]} 5. Nc3 {[%emt 0:00:00]} Nc6 {[%emt 0:00:00]} 6. Bg5 {[%emt 0:00:00]} e6 {[%emt 0:00:03]} 7. Qd2 {[%emt 0:00:01]} a6 {[%emt 0:00:07]} 8. O-O-O {[%emt 0:00:05]} Bd7 {[%emt 0:00:05]} 9. f4 {[%emt 0:00:05]} Be7 {[%emt 0:00:48]} 10. Nf3 {[%emt 0:00:07]} b5 {[%emt 0:01:04]} 11. Bxf6 {[%emt 0:00:32]} gxf6 {[%emt 0:00:03]} 12. f5 {[%emt 0:00:10]} Qa5 {[%emt 0:05:43]} 13. Kb1 {[%emt 0:00:34]} h5 {[%emt 0:00:28]} 14. Bd3 {[%emt 0:00:23]} O-O-O {[%emt 0:04:29]} 15. Qe3 {[%emt 0:02:07]} Kb7 {[%emt 0:00:30]} 16. Ne2 {[%emt 0:01:24]} Qb6 {[%emt 0:06:45]} 17. Qd2 {[%emt 0:02:16]} h4 {[%emt 0:16:13]} 18. Nf4 {[%emt 0:21:57]} h3 {[%emt 0:15:08]} 19. Nxh3 {[%emt 0:02:33]} e5 {[%emt 0:00:16]} 20. Nf2 {[%emt 0:00:09]} Bc8 {[%emt 0:01:32]} 21. Ng4 {[%emt 0:02:07]} d5 {[%emt 0:04:34]} 22. exd5 {[%emt 0:00:29]} Rxd5 {[%emt 0:00:34]} 23. Qe2 {[%emt 0:01:15]} Ka7 {[%emt 0:18:07]} 24. Ne3 {[%emt 0:00:39]} Rd7 {[%emt 0:02:52]} 25. Be4 {[%emt 0:00:13]} Nd4 {[%emt 0:00:43]} 26. Nxd4 {[%emt 0:02:53]} exd4 {[%emt 0:00:01]} 27. Nd5 {[%emt 0:01:28]} Qc5 {[%emt 0:00:08]} 28. Qf3 {[%emt 0:13:02]} Bd8 {[%emt 0:01:36]} 29. a3 {[%emt 0:02:06]} Re8 {[%emt 0:04:14]} 30. Nb4 {[%emt 0:00:58]} Bc7 {[%emt 0:02:18]} 31. Nc6+ {[%emt 0:05:05]} Kb6 {[%emt 0:01:02]} 32. b4 {[%emt 0:00:21]} Qd6 {[%emt 0:00:50]} 33. Rxd4 {[%emt 0:17:06]} Qf4 {[%emt 0:01:45]} 34. Qxf4 {[%emt 0:01:12]} Bxf4 {[%emt 0:00:01]} 35. Bf3 {[%emt 0:00:09]} Rxd4 {[%emt 0:02:05]} 36. Nxd4 {[%emt 0:00:05]} Be5 {[%emt 0:01:03]} 37. c3 {[%emt 0:01:51]} Rd8 {[%emt 0:03:06]} 38. g4 {[%emt 0:02:53]} Bxd4 {[%emt 0:00:25]} 39. cxd4 {[%emt 0:02:40]} Rxd4 {[%emt 0:02:25]} 40. Rd1 {[%emt 0:01:06]} Rf4 {[%emt 0:01:12]} 41. Rd6+ {[%emt 0:00:12]} Kc7 {[%emt 0:05:20]} 42. Rd3 {[%emt 0:00:10]} Bb7 {[%emt 0:00:18]} 43. Bxb7 {[%emt 0:11:17]} Kxb7 {[%emt 0:00:00]} 44. h3 {[%emt 0:00:01]} Kc6 {[%emt 0:00:32]} 45. Kb2 {[%emt 0:00:51]} Rf2+ {[%emt 0:01:36]} 46. Kc3 {[%emt 0:00:12]} Re2 {[%emt 0:00:56]} 47. Kd4 {[%emt 0:00:24]} Kd6 {[%emt 0:00:44]} 48. Re3 {[%emt 0:00:13]} Rc2 {[%emt 0:01:40]} 49. Ke4 {[%emt 0:00:21]} Rf2 {[%emt 0:00:26]} 50. Rd3+ {[%emt 0:00:17]} Ke7 {[%emt 0:00:22]} 51. Kd4 {[%emt 0:00:25]} Rc2 {[%emt 0:00:40]} 52. Rc3 {[%emt 0:00:06]} Rd2+ {[%emt 0:00:12]} 53. Kc5 {[%emt 0:02:16]} Rd6 {[%emt 0:00:07]} 54. h4 {[%emt 0:00:20]} Kd7 {[%emt 0:00:16]} 55. h5 {[%emt 0:00:51]} Rc6+ {[%emt 0:01:23]} 56. Kd4 {[%emt 0:00:02]} Rd6+ {[%emt 0:00:17]} 57. Ke4 {[%emt 0:00:05]} Ke7 {[%emt 0:00:44]} 58. h6 {[%emt 0:01:17]} Rd8 {[%emt 0:00:29]} 59. h7 {[%emt 0:04:19]} Rh8 {[%emt 0:00:34]} 60. Rh3 {[%emt 0:00:04]} Kd6 {[%emt 0:00:37]} 61. Kd4 {[%emt 0:00:43]} Kc6 {[%emt 0:00:28]} 62. Rh6 {[%emt 0:00:13]} Kd7 {[%emt 0:00:33]} 63. Kd5 {[%emt 0:00:15]} Kc7 {[%emt 0:00:27]} 64. Kc5 {[%emt 0:00:07]} Kd7 {[%emt 0:00:32]} 65. Kb6 {[%emt 0:00:07]} 1-0